bitfinex/quotes_ETHUSD_20240924
["timestamp","ask_amount","ask_price","bid_price","bid_amount"]
[1727159048900,0.79040621,2646.0,2645.9,3.77943]
[1727159049074,0.79040621,2646.1,2646.0,3.77928]
[1727159049277,0.79040621,2646.1,2646.0,4.54128]
[1727159049492,1.1856111,2646.1,2646.0,0.762]
[1727159049808,1.18598064,2646.1,2646.0,0.762]
[1727159050525,1.58095976,2646.1,2646.0,0.762]
[1727159051407,1.9761997,2646.1,2646.0,0.762]
[1727159051619,1.58255581,2646.1,2646.0,0.762]
[1727159052418,1.58276459,2646.1,2646.0,0.762]
[1727159053620,1.9761997,2646.1,2646.0,0.762]
[1727159053834,1.97877175,2646.2,2646.0,0.762]
[1727159054125,1.58301641,2646.1,2646.0,0.762]
[1727159054332,1.97877175,2646.2,2646.0,0.762]
[1727159054484,1.58326118,2646.1,2646.0,0.762]
[1727159055124,1.58330134,2646.1,2646.0,0.762]
[1727159055492,1.58324628,2646.1,2646.0,0.762]
[1727159055922,1.97877175,2646.2,2646.0,0.762]
[1727159056495,1.58326241,2646.1,2646.0,0.762]
[1727159056696,1.58290505,2646.1,2646.0,0.762]
[1727159057093,1.97877175,2646.2,2646.0,0.762]
[1727159057289,1.58294576,2646.1,2646.0,0.762]
[1727159057601,0.79117299,2646.1,2646.0,4.995421]
[1727159058005,0.79117299,2646.2,2646.1,4.54114]
[1727159058823,0.79117299,2646.3,2646.2,4.541]
[1727159059791,0.79117299,2646.4,2646.3,3.77886]
[1727159059992,0.79117299,2646.4,2646.3,4.54086]
[1727159060193,0.79117299,2646.5,2646.4,4.54071]
[1727159060400,0.79117299,2646.7,2646.5,0.762]
[1727159060622,0.79117299,2646.7,2646.5,4.54049]
[1727159060832,0.79117299,2646.7,2646.6,0.762]
[1727159061820,1.18687902,2646.8,2646.6,0.762]
[1727159062019,1.18687902,2646.7,2646.6,0.762]
[1727159062496,1.18687902,2646.8,2646.6,0.762]
[1727159063721,0.78941453,2646.7,2646.6,0.762]
[1727159064425,4.56769453,2646.7,2646.3,0.762]
[1727159064624,0.78929361,2646.6,2646.3,0.762]
[1727159065125,4.56757361,2646.7,2646.3,0.762]
[1727159065738,0.78929361,2646.6,2646.3,0.762]
[1727159067637,4.56757361,2646.7,2646.3,0.762]
[1727159071942,0.78929361,2646.6,2646.3,0.762]
[1727159072317,4.56757361,2646.7,2646.3,0.762]
[1727159072518,0.78929361,2646.6,2646.3,0.762]
[1727159074049,0.78929361,2646.5,2646.3,0.762]
[1727159079558,6.01430899,2646.5,2646.0,0.8219]
[1727159079848,3.77895,2646.3,2646.0,0.8219]
[1727159080212,4.7840999,2646.3,2646.0,0.8219]
[1727159080413,0.78929361,2646.2,2646.0,0.8219]
[1727159080649,0.78929361,2646.2,2645.8,0.8219]
[1727159089726,7.55839,2646.1,2645.6,0.8234]
[1727159089927,3.77936,2646.0,2645.6,0.8234]
[1727159090133,3.77936,2646.0,2645.4,0.8234]
[1727159090134,0.403756,2645.9,2645.4,0.8234]
[1727159091052,0.403756,2645.9,2645.1,3.78056]
[1727159091053,3.77985,2645.7,2645.2,0.8234]
[1727159091229,3.77994,2645.6,2645.2,0.8234]
[1727159091431,4.03805,2645.7,2645.2,0.8234]
[1727159091432,3.78,2645.5,2645.2,0.8234]
[1727159091931,3.78011,2645.5,2645.2,0.8234]
[1727159092131,4.561934,2645.5,2645.0,0.8234]
[1727159092334,3.78039,2645.3,2645.0,0.8234]
[1727159092863,3.78024,2645.4,2645.0,0.8234]
[1727159093066,7.56047,2645.4,2645.0,0.8234]
[1727159093253,3.7803,2645.3,2645.0,0.8234]
[1727159095061,3.78051,2645.2,2645.0,0.8234]
[1727159095269,3.78051,2645.2,2644.9,0.03879598]
[1727159095653,4.0385,2645.3,2644.9,0.03879598]
[1727159095842,8.6789494,2645.3,2644.9,0.03879598]
[1727159096047,4.8985394,2645.3,2644.9,0.03879598]
[1727159097387,8.6789294,2645.3,2644.9,0.03879598]
[1727159097975,3.78047,2645.2,2644.9,0.03879598]
[1727159098485,4.8985394,2645.3,2644.9,0.03879598]
[1727159098684,1.18647084,2645.1,2644.9,0.03879598]
[1727159098975,0.79098056,2645.0,2644.9,0.03879598]
[1727159099293,0.79098056,2645.2,2645.0,0.8234]
[1727159100343,0.79098056,2645.2,2645.0,4.60409]
[1727159100563,0.79098056,2645.2,2645.0,8.38471]
[1727159100775,0.79098056,2645.3,2645.0,8.38465]
[1727159100975,0.79098056,2645.2,2645.0,4.60402]
[1727159101558,0.79098056,2645.3,2645.0,4.60402]
[1727159101754,0.79098056,2645.3,2645.1,3.78054]
[1727159101954,0.79098056,2645.3,2645.2,3.78043]
[1727159102192,1.58294576,2645.6,2645.4,3.78014]
[1727159102193,0.79098056,2645.5,2645.4,3.78014]
[1727159102347,0.79098056,2645.7,2645.5,3.78]
[1727159103185,0.79098056,2645.7,2645.6,3.77986]
[1727159103394,0.79098056,2645.8,2645.7,3.77971]
[1727159103700,0.79098056,2646.0,2645.8,3.77957]
[1727159107554,0.79098056,2646.0,2645.7,3.77971]
[1727159107759,0.79098056,2645.9,2645.7,3.77971]
[1727159107969,0.79098056,2645.9,2645.8,3.77957]
[1727159108172,0.79098056,2646.0,2645.8,3.77957]
[1727159108461,0.79098056,2645.9,2645.8,3.77957]
[1727159108883,0.79098056,2645.9,2645.7,3.77971]
[1727159109123,0.79098056,2645.9,2645.7,7.55933]
[1727159109287,0.79098056,2645.9,2645.7,3.77962]
[1727159111375,0.79098056,2645.9,2645.6,0.8321]
[1727159111577,0.79098056,2645.8,2645.6,0.8321]
[1727159112174,0.79098056,2645.7,2645.6,0.8321]
[1727159112787,1.18647084,2645.8,2645.6,0.8321]
[1727159113299,1.18647084,2645.8,2645.4,6.78013]
[1727159113300,1.18647084,2645.7,2645.4,3.8321]
[1727159113510,0.79121099,2645.6,2645.4,3.8321]
[1727159113862,0.79121099,2645.6,2645.4,0.8321]
[1727159114217,0.79121099,2645.5,2645.2,0.8321]
[1727159114503,0.79137644,2645.4,2645.2,0.8321]
[1727159114657,1.18647084,2645.4,2645.2,0.8321]
[1727159114861,1.18647084,2645.3,2645.0,4.60447]
[1727159115123,0.79154242,2645.2,2645.0,4.60447]
[1727159115407,0.79154242,2645.1,2645.0,0.8238]
[1727159115573,0.79154242,2645.1,2645.0,4.60451]
[1727159115772,0.79162982,2645.1,2645.0,0.8238]
[1727159116718,0.79172094,2645.1,2645.0,0.8238]
[1727159116872,0.79170567,2645.1,2645.0,0.8238]
[1727159117210,1.18647084,2645.1,2645.0,0.8238]
[1727159117408,1.58294576,2645.3,2645.0,0.8238]
[1727159117409,1.18647084,2645.2,2645.0,0.8238]
[1727159117566,1.18647084,2645.1,2645.0,0.8238]
[1727159117767,1.18647084,2645.2,2645.0,0.8238]
[1727159118195,1.18647084,2645.1,2645.0,0.8238]
[1727159119997,1.66131668,2645.1,2644.9,0.03879598]
[1727159120184,1.18808719,2645.0,2644.9,0.03879598]
[1727159121102,2.0577916,2645.1,2644.9,0.03879598]
[1727159121302,1.18827043,2645.0,2644.9,0.03879598]
[1727159121656,2.0577916,2645.1,2644.9,0.03879598]
[1727159121915,1.18841446,2645.0,2644.9,0.03879598]
[1727159122118,2.0577916,2645.1,2644.9,0.03879598]
[1727159122476,1.18836513,2645.0,2644.9,0.03879598]
[1727159125103,2.08380102,2645.0,2644.9,0.03879598]
[1727159126904,6.26060701,2645.0,2644.9,0.03879598]
[1727159127105,2.47989701,2645.0,2644.9,0.03879598]
[1727159127611,0.50085526,2645.0,2644.9,0.03879598]
[1727159128419,4.28156526,2645.0,2644.9,0.03879598]
[1727159128617,2.48096761,2645.0,2644.9,0.03879598]
[1727159130315,2.48077305,2645.0,2644.9,0.03879598]
[1727159134039,2.08472187,2645.0,2644.9,0.03879598]
[1727159134241,1.58386661,2645.1,2644.9,0.03879598]
[1727159134540,1.58386661,2645.1,2645.0,0.7703]
[1727159134758,1.97991779,2645.3,2645.0,0.7703]
[1727159134759,1.58386661,2645.2,2645.0,0.7703]
[1727159135516,1.58386661,2645.1,2645.0,0.7703]
[1727159140321,1.58386661,2645.2,2645.0,0.7703]
[1727159140523,1.58386661,2645.1,2645.0,0.7703]
[1727159146951,1.58386661,2645.1,2644.9,0.03879598]
[1727159147425,1.58386661,2645.0,2644.9,0.03879598]
[1727159148419,3.78035,2645.3,2644.9,0.03879598]
[1727159148625,1.98000953,2645.1,2644.9,0.03879598]
[1727159148820,4.53649,2645.2,2644.9,0.03879598]
[1727159148821,1.98000953,2645.0,2644.9,0.03879598]
[1727159149436,1.98003462,2645.0,2644.9,0.03879598]
[1727159149636,2.23823462,2645.1,2644.9,0.03879598]
[1727159149835,1.98003462,2645.0,2644.9,0.03879598]
[1727159150264,3.03556508,2645.0,2644.9,0.03879598]
[1727159150425,1.05553046,2645.0,2644.9,0.03879598]
[1727159150625,3.03599398,2645.0,2644.9,0.03879598]
[1727159150832,1.05553046,2645.0,2644.9,0.03879598]
[1727159151362,3.03599846,2645.0,2644.9,0.03879598]
[1727159151566,4.83624046,2645.0,2644.9,0.03879598]
[1727159155567,7.21360976,2645.0,2644.9,0.03879598]
[1727159156067,4.83624046,2645.0,2644.9,0.03879598]
[1727159156566,7.21360976,2645.0,2644.9,0.03879598]
[1727159158045,7.21700334,2645.0,2644.9,0.03879598]
[1727159158565,2.38149431,2645.0,2644.9,0.03879598]
[1727159158770,2.38149431,2645.1,2644.9,0.03879598]
[1727159159972,2.38149431,2645.0,2644.9,3.81965598]
[1727159160130,2.38149431,2645.1,2644.9,3.81965598]
[1727159160658,2.38149431,2645.1,2645.0,0.756]
[1727159162443,2.77755669,2645.3,2645.0,0.756]
[1727159162641,2.38314411,2645.1,2645.0,0.756]
[1727159163074,2.38314411,2645.1,2645.0,4.53671]
[1727159163382,2.38314411,2645.1,2645.0,0.756]
[1727159166261,2.38335598,2645.1,2645.0,0.756]
[1727159167678,2.38335598,2645.1,2645.0,6.44244561]
[1727159167855,1.58872154,2645.1,2645.0,9.9865702]
[1727159168052,1.58872154,2645.2,2645.1,6.78057]
[1727159168387,1.58872154,2645.3,2645.2,4.53643]
[1727159168586,1.58872154,2645.3,2645.2,5.98460901]
[1727159168800,1.58872154,2645.3,2645.2,9.52873347]
[1727159168801,0.79394522,2645.3,2645.2,9.52873347]
[1727159169083,0.79394522,2645.3,2645.2,8.98460901]
[1727159169397,1.19105422,2645.4,2645.2,8.98460901]
[1727159169398,0.79394522,2645.4,2645.3,7.53628]
[1727159169686,1.19105422,2645.5,2645.4,7.53614]
[1727159169893,1.19105422,2645.5,2645.4,8.98431901]
[1727159170782,1.19105422,2645.6,2645.5,3.78]
[1727159171795,1.19105422,2645.6,2645.5,3.85559246]
[1727159172153,1.19105422,2645.6,2645.5,3.78]
[1727159172354,1.19105422,2645.6,2645.5,5.2386416]
[1727159172750,1.19105422,2645.6,2645.5,1.4586416]
[1727159172954,1.58872154,2645.6,2645.4,7.53614]
[1727159173213,1.18909724,2645.5,2645.4,7.53614]
[1727159177604,1.18909724,2645.5,2645.3,3.78021]
[1727159178324,1.18909724,2645.4,2645.3,3.78021]
[1727159178889,1.18909724,2645.5,2645.3,3.78021]
[1727159179989,1.18909724,2645.4,2645.3,3.78021]
[1727159180696,1.18909724,2645.5,2645.3,6.20486991]
[1727159180899,0.79226346,2645.5,2645.4,4.2486638]
[1727159181103,0.79226346,2645.6,2645.5,3.78]
[1727159181319,0.79226346,2645.7,2645.6,3.77986]
[1727159181633,0.79226346,2645.9,2645.8,7.53557]
[1727159182121,0.79194671,2645.9,2645.8,7.53557]
[1727159182421,0.79194671,2646.0,2645.9,3.77943]
[1727159183388,0.79194671,2646.0,2645.8,7.53557]
[1727159183589,0.79194671,2646.0,2645.9,3.77943]
[1727159184996,0.79194671,2646.1,2645.9,3.77943]
[1727159185741,0.79194671,2646.1,2645.8,7.53557]
[1727159186031,0.79194671,2646.1,2645.8,11.31505]
[1727159186235,0.79194671,2646.1,2645.8,7.53548]
[1727159186412,0.79194671,2646.0,2645.8,11.31497]
[1727159187200,0.79194671,2646.1,2645.8,11.31497]
[1727159187401,0.79194671,2646.0,2645.8,7.53548]
[1727159187603,0.79194671,2646.1,2645.8,7.53548]
[1727159188127,0.79194671,2646.1,2645.8,11.31496]
[1727159188636,0.79194671,2646.1,2645.8,7.53548]
[1727159189131,0.79194671,2646.2,2645.8,7.53548]
[1727159189835,0.79194671,2646.1,2645.8,7.53548]
[1727159190035,0.79194671,2646.1,2645.8,11.31497]
[1727159190334,0.79194671,2646.1,2645.8,7.53548]
[1727159190535,0.79194671,2646.2,2645.8,7.53548]
[1727159191716,0.79194671,2646.1,2645.8,7.53548]
[1727159191910,1.18909724,2646.2,2645.8,7.53548]
[1727159191911,0.79194671,2646.2,2645.8,7.53548]
[1727159194644,0.79194671,2646.1,2645.8,7.53548]
[1727159195219,0.79194671,2646.2,2645.8,7.53548]
[1727159195532,0.79194671,2646.2,2645.9,3.77942]
[1727159195753,0.79194671,2646.2,2645.8,7.61105978]
[1727159195754,0.79194671,2646.2,2645.8,7.53548]
[1727159198052,0.79194671,2646.1,2645.8,7.53548]
[1727159199049,0.79194671,2646.1,2645.8,0.756]
[1727159199265,0.79194671,2646.1,2645.7,3.0]
[1727159199266,1.17474326,2646.1,2645.7,3.0]
[1727159199417,0.79194671,2646.1,2645.7,3.0]
[1727159199754,0.79194671,2646.1,2645.7,6.77969]
[1727159199755,0.79194671,2646.0,2645.7,6.77969]
[1727159201082,0.79194671,2646.0,2645.7,3.0]
[1727159201244,0.2582,2645.8,2645.4,3.78006]
[1727159201441,1.05014671,2645.8,2645.4,3.78006]
[1727159201954,0.79194671,2645.7,2645.4,3.78006]
[1727159202154,0.79194671,2645.7,2645.4,7.56012]
[1727159202364,0.79194671,2645.7,2645.5,3.0]
[1727159204476,0.79194671,2645.6,2645.5,3.0]
[1727159206350,0.79194671,2645.6,2645.5,6.78]
[1727159207152,1.18909724,2645.7,2645.5,6.78]
[1727159208268,1.18909724,2645.6,2645.5,6.78]
[1727159208465,1.18909724,2645.7,2645.5,6.78]
[1727159209168,1.18909724,2645.6,2645.5,6.78]
[1727159209559,1.18909724,2645.6,2645.5,3.0]
[1727159209759,1.58872154,2645.7,2645.5,3.0]
[1727159209959,1.18878855,2645.6,2645.5,3.0]
[1727159210196,1.58872154,2645.7,2645.5,3.0]
[1727159210364,1.58872154,2645.6,2645.5,3.0]
[1727159210694,1.58872154,2645.7,2645.5,6.78]
[1727159210868,1.18905255,2645.6,2645.5,3.0]
[1727159211066,1.58872154,2645.7,2645.5,3.0]
[1727159211252,1.58872154,2645.6,2645.5,3.0]
[1727159213154,1.97889682,2645.7,2645.5,3.0]
[1727159214056,1.98365098,2645.7,2645.5,3.0]
[1727159214256,1.98365098,2645.6,2645.5,3.0]
[1727159214482,1.98365098,2645.7,2645.5,3.0]
[1727159216313,1.98365098,2645.7,2645.6,3.77986]
[1727159216803,1.98365098,2645.8,2645.6,3.77986]
[1727159217607,1.98365098,2645.7,2645.6,3.77986]
[1727159217908,1.98365098,2645.8,2645.6,3.77986]
[1727159218200,1.98365098,2645.7,2645.6,3.77986]
[1727159218408,1.98365098,2645.7,2645.5,3.0]
[1727159218608,1.58688263,2645.6,2645.5,3.0]
[1727159220186,1.58688263,2645.6,2645.2,5.22851901]
[1727159220187,2.24206363,2645.6,2645.2,3.78034]
[1727159220512,1.19031275,2645.3,2645.2,6.78034]
[1727159220666,1.19031275,2645.3,2645.2,3.78034]
[1727159220869,1.58708366,2645.4,2645.2,3.78034]
[1727159221099,1.58708366,2645.3,2645.2,3.78034]
[1727159221680,1.98386363,2645.5,2645.2,3.78034]
[1727159221681,1.58708366,2645.4,2645.2,3.78034]
[1727159222084,1.19029334,2645.3,2645.2,3.78034]
[1727159222411,1.58708366,2645.4,2645.2,3.78034]
[1727159223302,1.58708366,2645.3,2645.1,7.54887]
[1727159223502,1.19021177,2645.2,2645.1,7.54887]
[1727159225377,1.19021177,2645.2,2645.1,8.65151369]
[1727159226111,1.19021177,2645.4,2645.3,3.78028]
[1727159226925,1.58708366,2645.5,2645.3,3.78028]
[1727159227621,1.19011105,2645.4,2645.3,3.78028]
[1727159227914,1.58708366,2645.5,2645.3,3.78028]
[1727159228090,1.19011738,2645.4,2645.3,3.78028]
[1727159228829,1.58708366,2645.5,2645.3,3.78028]
[1727159228984,1.19012004,2645.4,2645.3,3.78028]
[1727159229908,1.58708366,2645.5,2645.3,3.78028]
[1727159230110,1.19012699,2645.4,2645.3,3.78028]
[1727159230289,1.19015048,2645.4,2645.3,3.78028]
[1727159230647,1.58708366,2645.5,2645.3,3.78028]
[1727159230796,1.19015064,2645.4,2645.3,3.78028]
[1727159231214,1.58708366,2645.4,2645.3,3.78028]
[1727159231829,1.98372536,2645.5,2645.3,3.78028]
[1727159232341,1.98372536,2645.5,2645.1,8.65138369]
[1727159232494,1.58697385,2645.3,2645.2,3.7804]
[1727159232700,1.58697385,2645.4,2645.2,3.7804]
[1727159233211,1.58697385,2645.3,2645.2,3.7804]
[1727159233402,1.58697385,2645.4,2645.2,3.7804]
[1727159233603,1.58697385,2645.3,2645.2,3.7804]
[1727159233820,1.58697385,2645.3,2645.1,8.65138369]
[1727159234142,1.19021847,2645.2,2645.1,8.65138369]
[1727159234457,0.79343729,2645.2,2645.1,8.65138369]
[1727159235859,1.19021847,2645.3,2645.2,3.78043]
[1727159236347,1.19021847,2645.3,2645.2,5.16842927]
[1727159236755,1.58697385,2645.3,2645.2,5.16842927]
[1727159238722,6.41922016,2645.3,2644.9,0.03879598]
[1727159239027,1.9844064,2645.0,2644.9,0.03879598]
[1727159241427,1.983638,2645.1,2644.9,0.03879598]
[1727159241822,1.983638,2645.0,2644.9,0.03879598]
[1727159242544,0.8346068,2645.0,2644.9,0.03879598]
[1727159243566,2.81801965,2645.0,2644.9,0.03879598]
[1727159244157,0.8346068,2645.0,2644.9,0.03879598]
[1727159244377,6.59856829,2645.0,2644.9,0.03879598]
[1727159244855,4.6153168,2645.0,2644.9,0.03879598]
[1727159245233,6.59838779,2645.0,2644.9,0.03879598]
[1727159245443,2.81769056,2645.0,2644.9,0.03879598]
[1727159245649,2.81767869,2645.0,2644.9,0.03879598]
[1727159246051,4.6153168,2645.0,2644.9,0.03879598]
[1727159246260,6.59851886,2645.0,2644.9,0.03879598]
[1727159246581,6.59820598,2645.0,2644.9,0.03879598]
[1727159247084,6.59822475,2645.0,2644.9,0.03879598]
[1727159247353,6.59805656,2645.0,2644.9,0.03879598]
[1727159248368,2.81734656,2645.0,2644.9,0.03879598]
[1727159248922,0.8346068,2645.0,2644.9,0.03879598]
[1727159249143,2.81734656,2645.0,2644.9,0.03879598]
[1727159249563,6.59805656,2645.0,2644.9,0.03879598]
[1727159249765,2.81734656,2645.0,2644.9,0.03879598]
[1727159250675,6.59805656,2645.0,2644.9,0.03879598]
[1727159251034,4.6153168,2645.0,2644.9,0.03879598]
[1727159251365,6.59749273,2645.0,2644.9,0.03879598]
[1727159252744,4.6153168,2645.0,2644.9,0.03879598]
[1727159253274,6.59700173,2645.0,2644.9,0.03879598]
[1727159253474,4.6153168,2645.0,2644.9,0.03879598]
[1727159253637,6.59701479,2645.0,2644.9,0.03879598]
[1727159253977,2.55810479,2645.0,2644.9,0.03879598]
[1727159254176,2.16164773,2645.0,2644.9,0.03879598]
[1727159254331,1.58524093,2645.0,2644.9,0.03879598]
[1727159254733,5.36593573,2645.0,2644.9,0.03879598]
[1727159255147,3.78071,2645.0,2644.9,0.03879598]
[1727159255875,5.76240799,2645.0,2644.9,0.03879598]
[1727159256434,2.23989799,2645.0,2644.9,0.03879598]
[1727159256673,6.62265579,2645.0,2644.9,0.03879598]
[1727159259852,2.84194579,2645.0,2644.9,0.03879598]
[1727159260253,2.58374579,2645.0,2644.9,0.03879598]
[1727159260761,0.6020478,2645.0,2644.9,0.03879598]
[1727159261294,2.58337979,2645.0,2644.9,0.03879598]
[1727159264522,6.36408979,2645.0,2644.9,0.03879598]
[1727159264901,6.36461621,2645.0,2644.9,0.03879598]
[1727159265219,4.6409578,2645.0,2644.9,0.03879598]
[1727159265426,6.62303319,2645.0,2644.9,0.03879598]
[1727159265626,6.62300685,2645.0,2644.9,0.03879598]
[1727159269298,4.6409578,2645.0,2644.9,0.03879598]
[1727159273434,7.01968853,2645.0,2644.9,0.03879598]
[1727159274664,4.6409578,2645.0,2644.9,0.03879598]
[1727159277243,7.02145302,2645.0,2644.9,0.03879598]
[1727159277780,4.6409578,2645.0,2644.9,0.03879598]
[1727159278875,2.38067558,2645.1,2644.9,0.03879598]
[1727159279075,6.16126558,2645.1,2644.9,0.03879598]
[1727159279287,2.38067558,2645.1,2644.9,0.80609598]
[1727159279470,2.38067558,2645.2,2644.9,0.80609598]
[1727159280077,1.98395127,2645.0,2644.9,0.80609598]
[1727159280282,2.38074234,2645.1,2644.9,0.80609598]
[1727159282484,2.38074234,2645.0,2644.9,0.80609598]
[1727159283480,2.3833373,2645.0,2644.9,0.80609598]
[1727159284080,2.3833373,2645.0,2644.9,0.03879598]
[1727159284275,6.56108019,2645.2,2644.9,0.03879598]
[1727159284600,7.62104121,2645.2,2644.9,0.03879598]
[1727159285587,6.56115019,2645.1,2644.9,0.03879598]
[1727159287062,3.78059,2645.1,2644.9,0.03879598]
[1727159287491,6.56115019,2645.1,2644.9,0.03879598]
[1727159288588,6.56292582,2645.1,2644.9,0.03879598]
[1727159288758,7.7032475,2645.1,2644.9,0.03879598]
[1727159289551,6.82124582,2645.0,2644.9,0.03879598]
[1727159290281,4.03891,2645.0,2644.9,0.03879598]
[1727159290899,5.48708901,2645.0,2644.9,0.03879598]
[1727159295512,4.03891,2645.0,2644.9,0.03879598]
[1727159295811,6.56274714,2645.0,2644.9,0.03879598]
[1727159296012,8.31640386,2645.0,2644.9,0.03879598]
[1727159296575,8.31636107,2645.0,2644.9,0.03879598]
[1727159296782,5.53436672,2645.0,2644.9,0.03879598]
[1727159297326,8.31637746,2645.0,2644.9,0.03879598]
[1727159297775,5.53436672,2645.0,2644.9,0.03879598]
[1727159299106,8.31625874,2645.0,2644.9,0.03879598]
[1727159299634,7.24074573,2645.0,2644.9,0.03879598]
[1727159299823,10.52691576,2645.0,2644.9,0.03879598]
[1727159300026,7.24074573,2645.0,2644.9,0.03879598]
[1727159302294,10.52607782,2645.0,2644.9,0.03879598]
[1727159302689,7.24074573,2645.0,2644.9,0.03879598]
[1727159303434,10.79074573,2645.0,2644.9,0.03879598]
[1727159304593,14.74163749,2645.0,2644.9,0.03879598]
[1727159304921,10.79074573,2645.0,2644.9,0.00800119]
[1727159307297,14.77974573,2645.0,2644.9,0.00800119]
[1727159307930,14.77974573,2645.0,2643.3,0.8071511]
[1727159307931,3.78281,2643.6,2643.3,0.8071511]
[1727159308129,6.16360965,2643.6,2643.3,0.8071511]
[1727159308301,1.58602778,2643.4,2643.3,0.8071511]
[1727159308636,1.98390861,2643.4,2643.3,0.8071511]
[1727159309225,5.76690861,2643.4,2643.3,0.8071511]
[1727159309444,3.783,2643.4,2643.3,0.8071511]
[1727159309922,5.76690861,2643.4,2643.3,0.0385511]
[1727159310257,4.88279476,2643.4,2643.3,0.0385511]
[1727159310425,6.86309854,2643.4,2643.3,0.0385511]
[1727159310850,4.88279476,2643.4,2643.3,0.0385511]
[1727159311418,6.8620361,2643.4,2643.3,0.0385511]
[1727159311723,5.76224134,2643.4,2643.3,0.0385511]
[1727159312018,5.3663138,2643.4,2643.3,0.0385511]
[1727159312338,3.783,2643.4,2643.3,0.0385511]
[1727159312661,1.18697588,2643.4,2643.3,0.0385511]
[1727159313251,1.5833138,2643.4,2643.3,0.0385511]
[1727159313416,1.18658878,2643.4,2643.3,0.8441511]
[1727159313857,0.79104654,2643.4,2643.3,0.8441511]
[1727159314163,0.79104654,2643.5,2643.3,3.8216911]
[1727159314331,0.79104654,2643.6,2643.4,0.8056]
[1727159316225,0.79104654,2643.5,2643.4,0.8056]
[1727159316533,0.79104654,2643.6,2643.4,0.8056]
[1727159319143,3.78286,2643.5,2643.4,0.8056]
[1727159319834,4.57390654,2643.5,2643.4,0.8056]
[1727159320037,3.78286,2643.5,2643.4,0.8056]
[1727159320447,4.57390654,2643.5,2643.4,0.8056]
[1727159321269,3.78286,2643.5,2643.4,0.8056]
[1727159321740,4.57390654,2643.5,2643.4,0.8056]
[1727159321950,3.78286,2643.5,2643.4,0.8056]
[1727159322447,0.79104654,2643.6,2643.4,0.8056]
[1727159322638,1.18658878,2643.7,2643.4,0.8056]
[1727159322639,0.79104654,2643.7,2643.4,0.8056]
[1727159322845,0.79104654,2643.7,2643.4,1.26832711]
[1727159323573,4.57364654,2643.7,2643.4,1.26832711]
[1727159324331,0.79104654,2643.7,2643.4,1.26832711]
[1727159324577,0.79104654,2643.8,2643.4,0.8056]
[1727159326280,0.79104654,2643.8,2643.5,0.8115]
[1727159326873,0.79104654,2643.7,2643.5,0.8115]
[1727159327571,4.57363654,2643.7,2643.5,0.8115]
[1727159329949,4.57363654,2643.7,2643.5,0.7615]
[1727159331476,0.79104654,2643.6,2643.5,0.7615]
[1727159332556,4.57363654,2643.7,2643.5,0.7615]
[1727159333356,0.79104654,2643.6,2643.5,0.7615]
[1727159334380,3.78293,2643.5,2643.3,0.0385511]
[1727159334587,4.57392132,2643.5,2643.3,0.0385511]
[1727159334882,8.35690132,2643.5,2643.3,0.0385511]
[1727159335046,0.79099132,2643.4,2643.3,0.0385511]
[1727159335685,3.783,2643.4,2643.3,0.0385511]
[1727159336059,4.96958878,2643.4,2643.3,0.0385511]
[1727159337397,3.783,2643.4,2643.3,0.0385511]
[1727159337871,4.97009427,2643.4,2643.3,0.0385511]
[1727159338460,3.783,2643.4,2643.3,0.0385511]
[1727159338789,4.97026857,2643.4,2643.3,0.0385511]
[1727159338991,4.63615525,2643.4,2643.3,0.0385511]
[1727159339193,6.21946905,2643.4,2643.3,0.0385511]
[1727159339675,4.63615525,2643.4,2643.3,0.0385511]
[1727159340454,6.61412536,2643.4,2643.3,0.0385511]
[1727159340699,6.61572412,2643.4,2643.3,0.0385511]
[1727159340997,4.63615525,2643.4,2643.3,0.0385511]
[1727159341364,6.61572412,2643.4,2643.3,0.0385511]
[1727159343499,6.6172531,2643.4,2643.3,0.0385511]
[1727159344021,10.15240098,2643.4,2643.3,0.0385511]
[1727159345106,4.63615525,2643.4,2643.3,0.0385511]
[1727159345483,7.0116379,2643.4,2643.3,0.0385511]
[1727159346404,8.46198708,2643.4,2643.3,0.0385511]
[1727159347196,6.93670443,2643.4,2643.3,0.0385511]
[1727159348310,4.93635525,2643.4,2643.3,0.0385511]
[1727159348513,7.71377286,2643.4,2643.3,0.0385511]
[1727159349323,7.71367946,2643.4,2643.3,0.0385511]
[1727159350410,4.93635525,2643.4,2643.3,0.0385511]
[1727159357828,7.93635525,2643.4,2643.3,0.0385511]
[1727159358647,8.48635525,2643.4,2643.3,0.0385511]
[1727159358918,11.76931352,2643.4,2643.3,0.0385511]
[1727159359983,8.48635525,2643.4,2643.3,0.0385511]
[1727159360296,7.93635525,2643.4,2643.3,0.0385511]
[1727159365613,7.63615525,2643.4,2643.3,0.0385511]
[1727159365801,7.4131535,2643.4,2643.3,0.0385511]
[1727159366006,4.63615525,2643.4,2643.3,0.0385511]
[1727159366212,7.41314405,2643.4,2643.3,0.0385511]
[1727159366397,7.41312029,2643.4,2643.3,0.0385511]
[1727159366591,7.41312602,2643.4,2643.3,0.0385511]
[1727159368930,7.41315509,2643.4,2643.3,0.0385511]
[1727159372593,4.63615525,2643.4,2643.3,0.0385511]
[1727159372797,7.41418504,2643.4,2643.3,0.0385511]
[1727159373298,4.63615525,2643.4,2643.3,0.0385511]
[1727159373739,7.41447094,2643.4,2643.3,0.0385511]
[1727159375497,4.63615525,2643.4,2643.3,0.0385511]
[1727159375715,7.41514659,2643.4,2643.3,0.0385511]
[1727159376646,4.63615525,2643.4,2643.3,0.0385511]
[1727159376845,7.41550923,2643.4,2643.3,0.0385511]
[1727159377013,6.56235398,2643.4,2643.3,0.0385511]
[1727159378435,3.783,2643.4,2643.3,0.0385511]
[1727159379008,6.5633125,2643.4,2643.3,0.0385511]
[1727159379334,3.783,2643.4,2643.3,0.0385511]
[1727159381612,7.06722728,2643.4,2643.3,0.0385511]
[1727159381808,8.29727193,2643.4,2643.3,0.0385511]
[1727159382533,5.01304465,2643.4,2643.3,0.0385511]
[1727159382946,8.29727193,2643.4,2643.3,0.0385511]
[1727159383437,8.3003965,2643.4,2643.3,0.0385511]
[1727159383818,5.01304465,2643.4,2643.3,0.0385511]
[1727159384232,8.3003965,2643.4,2643.3,0.0385511]
[1727159387023,5.01304465,2643.4,2643.3,0.0385511]
[1727159394421,8.95029208,2643.4,2643.3,0.0385511]
[1727159396243,5.01304465,2643.4,2643.3,0.0385511]
[1727159397537,8.95029208,2643.4,2643.3,0.0385511]
[1727159397737,5.01304465,2643.4,2643.3,0.0385511]
[1727159397954,8.95029208,2643.4,2643.3,0.0385511]
[1727159398153,5.01304465,2643.4,2643.3,0.0385511]